[Event "Fagernes Chess GM-Swiss 2025"]
[Site "Fagernes"]
[Date "2025.04.18"]
[Round "7.23"]
[White "Khoo-Thwe, Louis"]
[Black "Oksendal, Martin"]
[Result "1/2-1/2"]
[Annotator "ChessBase"]
[ECO "C11"]
[WhiteElo "2118"]
[BlackElo "2250"]
[PlyCount "108"]
[EventDate "2025.04.12"]
[EventCountry "NOR"]
[SourceTitle "playchess.com"]
[Source "ChessBase"]
[SourceQuality "1"]
[TimeControl "40/6000+30:2400+30"]

1. e4 {[%emt 0:00:02]} e6 {[%emt 0:03:48]} 2. d4 {[%emt 0:00:21]} d5 {[%emt 0:00:12]} 3. Nc3 {[%emt 0:01:36]} Nf6 {[%emt 0:00:27]} 4. e5 {[%emt 0:00:07]} Nfd7 {[%emt 0:00:04]} 5. f4 {[%emt 0:00:08]} c5 {[%emt 0:00:03]} 6. Nf3 {[%emt 0:00:07]} Nc6 {[%emt 0:00:03]} 7. Be3 {[%emt 0:00:06]} cxd4 {[%emt 0:00:30]} 8. Nxd4 {[%emt 0:00:13]} Qb6 {[%emt 0:00:03]} 9. Ncb5 {[%emt 0:03:58]} Bc5 {[%emt 0:18:17]} 10. Nxc6 {[%emt 0:02:55]} bxc6 {[%emt 0:23:21]} 11. Nd6+ {[%emt 0:00:59]} Ke7 {[%emt 0:08:22]} 12. Bxc5 {[%emt 0:11:31]} Nxc5 {[%emt 0:13:47]} 13. Qd4 {[%emt 0:06:25]} Nb7 {[%emt 0:14:32]} 14. Qxb6 {[%emt 0:24:44]} axb6 {[%emt 0:00:06]} 15. Nxb7 {[%emt 0:00:15]} Bxb7 {[%emt 0:00:01]} 16. Bd3 {[%emt 0:01:57]} Ra4 {[%emt 0:04:49]} 17. O-O {[%emt 0:02:37]} Rha8 {[%emt 0:04:04]} 18. a3 {[%emt 0:00:11]} g6 {[%emt 0:01:45]} 19. c3 {[%emt 0:06:26]} Ba6 {[%emt 0:02:06]} 20. Bc2 {[%emt 0:03:55]} Bxf1 {[%emt 0:01:15]} 21. Bxa4 {[%emt 0:00:08]} Rxa4 {[%emt 0:00:07]} 22. Rxf1 {[%emt 0:00:06]} h5 {[%emt 0:06:57]} 23. g3 {[%emt 0:03:45]} c5 {[%emt 0:00:36]} 24. Kf2 {[%emt 0:01:19]} Kd7 {[%emt 0:00:34]} 25. Ke3 {[%emt 0:02:02]} Kc6 {[%emt 0:00:27]} 26. Kd3 {[%emt 0:01:57]} Re4 {[%emt 0:02:19]} 27. b3 {[%emt 0:04:30]} c4+ {[%emt 0:01:09]} 28. bxc4 {[%emt 0:00:07]} Rxc4 {[%emt 0:00:02]} 29. Rb1 {[%emt 0:08:09]} Ra4 {[%emt 0:00:13]} 30. Rb3 {[%emt 0:01:59]} Kc5 {[%emt 0:00:26]} 31. h4 {[%emt 0:03:50]} b5 {[%emt 0:01:10]} 32. Kd2 {[%emt 0:00:46]} Re4 {[%emt 0:01:33]} 33. Rb1 {[%emt 0:00:30]} Ra4 {[%emt 0:00:12]} 34. Rb3 {[%emt 0:00:05]} Kb6 {[%emt 0:00:31]} 35. Kc2 {[%emt 0:06:35]} Ka5 {[%emt 0:01:18]} 36. Kd2 {[%emt 0:02:54]} Re4 {[%emt 0:01:21]} 37. Rb1 {[%emt 0:00:00]} Rc4 {[%emt 0:00:26]} 38. Kd3 {[%emt 0:00:38]} Ka4 {[%emt 0:00:47]} 39. Rb2 {[%emt 0:00:17]} Rc8 {[%emt 0:00:46]} 40. Rb4+ {[%emt 0:00:38]} Ka5 {[%emt 0:00:05]} 41. Kc2 {[%emt 0:42:06]} Ra8 {[%emt 0:21:47]} 42. Kb3 {[%emt 0:00:00]} Kb6 {[%emt 0:01:03]} 43. a4 {[%emt 0:00:00]} Rxa4 {[%emt 0:01:19]} 44. Rxa4 {[%emt 0:00:00]} bxa4+ {[%emt 0:00:01]} 45. Kxa4 {[%emt 0:00:00]} Kc5 {[%emt 0:00:06]} 46. Kb3 {[%emt 0:00:00]} Kb5 {[%emt 0:00:25]} 47. Kb2 {[%emt 0:00:00]} Ka4 {[%emt 0:05:33]} 48. Ka2 {[%emt 0:00:00]} Ka5 {[%emt 0:00:18]} 49. Kb3 {[%emt 0:00:00]} Kb5 {[%emt 0:03:21]} 50. Kb2 {[%emt 0:00:00]} Kc5 {[%emt 0:00:06]} 51. Kb3 {[%emt 0:00:00]} d4 {[%emt 0:00:59]} 52. c4 {[%emt 0:00:00]} Kb6 {[%emt 0:01:04]} 53. Kc2 {[%emt 0:00:00]} Kc6 {[%emt 0:00:05]} 54. Kd2 {[%emt 0:00:00]} Kb6 {[%emt 0:00:44]} 1/2-1/2

[Event "Fagernes Chess GM-Swiss 2025"]
[Site "Fagernes"]
[Date "2025.04.18"]
[Round "7.24"]
[White "Skotheim, Andreas"]
[Black "Andersen, Morten"]
[Result "1/2-1/2"]
[Annotator "RC"]
[ECO "C60"]
[WhiteElo "2229"]
[BlackElo "2200"]
[PlyCount "41"]
[EventDate "2025.04.12"]
[EventCountry "NOR"]
[SourceTitle "playchess.com"]
[Source "ChessBase"]
[SourceQuality "1"]
[TimeControl "40/6000+30:2400+30"]

1. e4 {[%emt 0:00:22]} e5 {[%emt 0:02:48]} 2. Nf3 {[%emt 0:01:10]} Nc6 {[%emt 0:01:42]} 3. Bb5 {[%emt 0:00:42]} Nge7 {[%emt 0:00:12]} 4. c3 {[%emt 0:05:02]} g6 {[%emt 0:00:40]} 5. O-O {[%emt 0:03:14]} a6 {[%emt 0:02:36]} 6. Ba4 {[%emt 0:00:38]} Bg7 {[%emt 0:01:19]} 7. h3 {[%emt 0:06:43]} O-O {[%emt 0:01:07]} 8. d4 {[%emt 0:01:02]} d5 {[%emt 0:06:33]} 9. exd5 {[%emt 0:04:29]} Qxd5 {[%emt 0:01:37]} 10. Bb3 {[%emt 0:05:53]} Qd6 {[%emt 0:02:58]} 11. dxe5 {[%emt 0:02:30]} Nxe5 {[%emt 0:04:09]} 12. Nxe5 {[%emt 0:02:47]} Qxd1 {[%emt 0:17:01]} 13. Rxd1 {[%emt 0:00:43]} Bxe5 {[%emt 0:00:06]} 14. Nd2 {[%emt 0:11:10]} Bf4 {[%emt 0:05:32]} 15. Nf3 {[%emt 0:08:35]} Bxc1 {[%emt 0:00:10]} 16. Raxc1 {[%emt 0:00:07]} Nf5 {[%emt 0:03:08]} 17. Ne5 {[%emt 0:04:20]} Kg7 {[%emt 0:03:51]} 18. g4 {[%emt 0:11:52]} Nd6 {[%emt 0:06:09]} 19. Nc4 {[%emt 0:09:38]} Ne4 {[%emt 0:05:28]} 20. Re1 {[%emt 0:02:13]} Nc5 {[%emt 0:10:59]} 21. Bc2 {[%emt 0:07:09]} 1/2-1/2

[Event "Fagernes Chess GM-Swiss 2025"]
[Site "Fagernes"]
[Date "2025.04.18"]
[Round "7.25"]
[White "Simonsen, David Mindestrommen"]
[Black "Hebbar, Eshaan"]
[Result "1/2-1/2"]
[Annotator "ChessBase"]
[ECO "B07"]
[WhiteElo "2034"]
[BlackElo "2175"]
[PlyCount "139"]
[EventDate "2025.04.12"]
[EventCountry "NOR"]
[SourceTitle "playchess.com"]
[Source "ChessBase"]
[SourceQuality "1"]
[TimeControl "40/6000+30:2400+30"]

1. e4 {[%emt 0:00:09]} d6 {[%emt 0:00:07]} 2. d4 {[%emt 0:00:12]} Nf6 {[%emt 0:00:06]} 3. Nc3 {[%emt 0:00:13]} g6 {[%emt 0:00:06]} 4. h4 {[%emt 0:01:57]} Bg7 {[%emt 0:02:20]} 5. h5 {[%emt 0:00:23]} Nxh5 {[%emt 0:01:06]} 6. g4 {[%emt 0:00:05]} Nf6 {[%emt 0:00:10]} 7. g5 {[%emt 0:00:05]} Nfd7 {[%emt 0:01:31]} 8. f4 {[%emt 0:01:50]} c5 {[%emt 0:01:57]} 9. d5 {[%emt 0:01:32]} Na6 {[%emt 0:14:56]} 10. Bc4 {[%emt 0:03:32]} Nc7 {[%emt 0:01:00]} 11. a4 {[%emt 0:00:30]} Rb8 {[%emt 0:07:07]} 12. Nf3 {[%emt 0:05:03]} Nb6 {[%emt 0:05:00]} 13. Bb3 {[%emt 0:03:11]} a5 {[%emt 0:04:39]} 14. Be3 {[%emt 0:03:12]} Bg4 {[%emt 0:00:52]} 15. Rh4 {[%emt 0:01:27]} Qd7 {[%emt 0:05:24]} 16. Kf2 {[%emt 0:01:22]} h5 {[%emt 0:26:22]} 17. gxh6 {[%emt 0:01:33]} Rxh6 {[%emt 0:00:09]} 18. Qh1 {[%emt 0:00:51]} Rxh4 {[%emt 0:00:35]} 19. Qxh4 {[%emt 0:00:28]} Bxf3 {[%emt 0:01:09]} 20. Kxf3 {[%emt 0:00:19]} e5 {[%emt 0:09:45]} 21. f5 {[%emt 0:06:57]} Qe7 {[%emt 0:04:23]} 22. Bg5 {[%emt 0:00:53]} f6 {[%emt 0:00:56]} 23. Be3 {[%emt 0:00:38]} g5 {[%emt 0:01:24]} 24. Qg4 {[%emt 0:02:14]} Nd7 {[%emt 0:07:08]} 25. Bc4 {[%emt 0:01:31]} Qf7 {[%emt 0:01:10]} 26. Rh1 {[%emt 0:01:06]} Ke7 {[%emt 0:00:42]} 27. Rh7 {[%emt 0:00:28]} Rh8 {[%emt 0:00:59]} 28. Rxh8 {[%emt 0:01:34]} Bxh8 {[%emt 0:00:02]} 29. Qh3 {[%emt 0:00:11]} Bg7 {[%emt 0:00:08]} 30. Qh7 {[%emt 0:00:12]} Nf8 {[%emt 0:00:44]} 31. Qh1 {[%emt 0:00:15]} Nd7 {[%emt 0:02:25]} 32. Kg4 {[%emt 0:00:31]} Bf8 {[%emt 0:00:32]} 33. Qh8 {[%emt 0:01:23]} Qg7 {[%emt 0:01:25]} 34. Qxg7+ {[%emt 0:00:34]} Bxg7 {[%emt 0:00:06]} 35. Kh5 {[%emt 0:00:16]} Kf7 {[%emt 0:05:02]} 36. Bb3 {[%emt 0:08:53]} Bf8 {[%emt 0:00:54]} 37. Bd2 {[%emt 0:01:59]} Kg7 {[%emt 0:00:50]} 38. Ne2 {[%emt 0:00:49]} b6 {[%emt 0:00:06]} 39. Bc4 {[%emt 0:00:07]} Be7 {[%emt 0:01:55]} 40. Kg4 {[%emt 0:01:01]} Nf8 {[%emt 0:02:22]} 41. Nc3 {[%emt 0:41:25]} Nd7 {[%emt 0:40:44]} 42. Nb1 {[%emt 0:00:10]} Bd8 {[%emt 0:00:41]} 43. Na3 {[%emt 0:00:21]} Nb8 {[%emt 0:01:20]} 44. Be2 {[%emt 0:02:35]} Kh6 {[%emt 0:00:00]} 45. Bb5 {[%emt 0:00:00]} Nxb5 {[%emt 0:00:00]} 46. Nxb5 {[%emt 0:00:00]} Be7 {[%emt 0:00:00]} 47. c3 {[%emt 0:00:00]} Na6 {[%emt 0:00:00]} 48. Na7 {[%emt 0:00:00]} Bd8 {[%emt 0:00:00]} 49. Nb5 {[%emt 0:00:00]} Be7 {[%emt 0:00:00]} 50. Be1 {[%emt 0:00:00]} Kh7 {[%emt 0:00:00]} 51. Kh5 {[%emt 0:00:00]} Kg7 {[%emt 0:00:00]} 52. Na3 {[%emt 0:00:00]} Bd8 {[%emt 0:00:00]} 53. Bd2 {[%emt 0:00:00]} Kh7 {[%emt 0:00:00]} 54. Nb5 {[%emt 0:00:00]} Be7 {[%emt 0:00:00]} 55. Be1 {[%emt 0:00:00]} Kg7 {[%emt 0:00:00]} 56. Na7 {[%emt 0:00:00]} Bd8 {[%emt 0:00:00]} 57. Bd2 {[%emt 0:00:00]} Kh7 {[%emt 0:00:00]} 58. Be3 {[%emt 0:00:00]} Kg7 {[%emt 0:00:00]} 59. Nc6 {[%emt 0:00:00]} Bc7 {[%emt 0:00:00]} 60. Bd2 {[%emt 0:00:00]} Kh7 {[%emt 0:00:00]} 61. Be3 {[%emt 0:00:00]} Kg7 {[%emt 0:00:00]} 62. Na7 {[%emt 0:00:00]} Bd8 {[%emt 0:00:00]} 63. Nb5 {[%emt 0:00:00]} Be7 {[%emt 0:00:00]} 64. Na3 {[%emt 0:00:00]} Bd8 {[%emt 0:00:00]} 65. Nc4 {[%emt 0:00:00]} Bc7 {[%emt 0:00:00]} 66. Bc1 {[%emt 0:00:00]} Kh7 {[%emt 0:00:00]} 67. Ne3 {[%emt 0:00:00]} Bd8 {[%emt 0:00:00]} 68. Bd2 {[%emt 0:00:00]} Kg7 {[%emt 0:00:00]} 69. Nc4 {[%emt 0:00:00]} Bc7 {[%emt 0:00:00]} 70. Be3 {[%emt 0:00:00]} 1/2-1/2

[Event "Fagernes Chess GM-Swiss 2025"]
[Site "Fagernes"]
[Date "2025.04.18"]
[Round "7.26"]
[White "Gandrud, Vegar Koi"]
[Black "Den Roover, Nikolay Jorgensen"]
[Result "1-0"]
[Annotator "ChessBase"]
[ECO "D79"]
[WhiteElo "2273"]
[BlackElo "2004"]
[PlyCount "125"]
[EventDate "2025.04.12"]
[EventCountry "NOR"]
[SourceTitle "playchess.com"]
[Source "ChessBase"]
[SourceQuality "1"]
[TimeControl "40/6000+30:2400+30"]

1. Nf3 {[%emt 0:00:05]} Nf6 {[%emt 0:00:08]} 2. g3 {[%emt 0:00:06]} c5 {[%emt 0:01:16]} 3. Bg2 {[%emt 0:00:12]} g6 {[%emt 0:02:56]} 4. O-O {[%emt 0:00:54]} Bg7 {[%emt 0:01:07]} 5. c3 {[%emt 0:00:53]} O-O {[%emt 0:02:33]} 6. d4 {[%emt 0:00:07]} cxd4 {[%emt 0:01:43]} 7. cxd4 {[%emt 0:00:07]} Ne4 {[%emt 0:11:09]} 8. Nc3 {[%emt 0:01:24]} d5 {[%emt 0:02:46]} 9. Qb3 {[%emt 0:01:18]} Nxc3 {[%emt 0:01:32]} 10. bxc3 {[%emt 0:00:06]} Nc6 {[%emt 0:00:45]} 11. Nd2 {[%emt 0:03:00]} e5 {[%emt 0:17:38]} 12. e3 {[%emt 0:02:20]} e4 {[%emt 0:06:48]} 13. c4 {[%emt 0:03:01]} dxc4 {[%emt 0:03:53]} 14. Qxc4 {[%emt 0:00:33]} Be6 {[%emt 0:02:28]} 15. Qb5 {[%emt 0:01:54]} f5 {[%emt 0:01:28]} 16. Qxb7 {[%emt 0:02:02]} Qd5 {[%emt 0:00:48]} 17. Qb3 {[%emt 0:02:44]} Rfb8 {[%emt 0:19:19]} 18. Qxd5 {[%emt 0:01:07]} Bxd5 {[%emt 0:00:04]} 19. Ba3 {[%emt 0:01:20]} Nb4 {[%emt 0:00:51]} 20. Bxb4 {[%emt 0:12:57]} Rxb4 {[%emt 0:00:03]} 21. Nb3 {[%emt 0:00:04]} a5 {[%emt 0:09:42]} 22. Nc5 {[%emt 0:07:04]} a4 {[%emt 0:02:01]} 23. a3 {[%emt 0:00:36]} Rc4 {[%emt 0:00:21]} 24. Rfc1 {[%emt 0:01:23]} Ra5 {[%emt 0:06:28]} 25. Rxc4 {[%emt 0:02:05]} Bxc4 {[%emt 0:00:01]} 26. Rc1 {[%emt 0:00:34]} Bd5 {[%emt 0:02:29]} 27. Bf1 {[%emt 0:00:11]} Bf8 {[%emt 0:00:36]} 28. Bc4 {[%emt 0:00:50]} Bxc4 {[%emt 0:00:23]} 29. Rxc4 {[%emt 0:00:03]} Kf7 {[%emt 0:00:24]} 30. Rxa4 {[%emt 0:10:01]} Rxa4 {[%emt 0:00:08]} 31. Nxa4 {[%emt 0:00:03]} Bxa3 {[%emt 0:00:15]} 32. f3 {[%emt 0:00:32]} Ke6 {[%emt 0:01:25]} 33. fxe4 {[%emt 0:09:24]} fxe4 {[%emt 0:00:04]} 34. Nc3 {[%emt 0:00:07]} Kf5 {[%emt 0:00:22]} 35. h3 {[%emt 0:02:39]} h5 {[%emt 0:00:22]} 36. Kf2 {[%emt 0:00:35]} Bb4 {[%emt 0:00:40]} 37. g4+ {[%emt 0:00:42]} hxg4 {[%emt 0:00:36]} 38. hxg4+ {[%emt 0:00:02]} Kxg4 {[%emt 0:00:10]} 39. Nxe4 {[%emt 0:00:03]} Kf5 {[%emt 0:00:51]} 40. Kf3 {[%emt 0:00:54]} g5 {[%emt 0:01:01]} 41. Ng3+ {[%emt 0:44:07]} Ke6 {[%emt 0:40:30]} 42. e4 Bc3 {[%emt 0:00:30]} 43. Ke3 {[%emt 0:01:00]} Ba5 {[%emt 0:00:30]} 44. Ne2 {[%emt 0:00:30]} Be1 {[%emt 0:00:30]} 45. Kf3 {[%emt 0:00:30]} Bd2 {[%emt 0:00:30]} 46. Ng1 {[%emt 0:00:30]} Bc3 {[%emt 0:00:30]} 47. Ke3 {[%emt 0:00:30]} Ba5 {[%emt 0:00:30]} 48. Nf3 {[%emt 0:00:30]} Kf6 {[%emt 0:00:30]} 49. Ne5 {[%emt 0:00:30]} Bc7 {[%emt 0:00:30]} 50. Ng4+ {[%emt 0:00:30]} Ke6 {[%emt 0:00:30]} 51. d5+ {[%emt 0:00:30]} Kd6 {[%emt 0:00:30]} 52. Kd4 {[%emt 0:00:30]} Bb6+ {[%emt 0:00:30]} 53. Kc4 {[%emt 0:00:30]} Bc7 {[%emt 0:05:31]} 54. e5+ {[%emt 0:23:47]} Ke7 {[%emt 0:00:30]} 55. Kd4 {[%emt 0:00:30]} Ba5 {[%emt 0:00:30]} 56. Ke4 {[%emt 0:00:30]} Bd2 {[%emt 0:00:30]} 57. Kf5 {[%emt 0:00:30]} Bc3 {[%emt 0:00:30]} 58. Nf2 {[%emt 0:00:30]} Bb2 {[%emt 0:00:30]} 59. Ne4 {[%emt 0:00:30]} Ba3 {[%emt 0:00:30]} 60. Kxg5 {[%emt 0:00:30]} Bb2 {[%emt 0:03:57]} 61. Kf5 {[%emt 0:02:46]} Ba3 {[%emt 0:00:20]} 62. d6+ {[%emt 0:01:05]} Kd8 {[%emt 0:00:16]} 63. e6 {[%emt 0:00:34]} 1-0

[Event "Fagernes Chess GM-Swiss 2025"]
[Site "Fagernes"]
[Date "2025.04.18"]
[Round "7.27"]
[White "Torfoss, Sivert Schanche"]
[Black "Hausken, Andreas Skrede"]
[Result "1-0"]
[Annotator "NA RC"]
[ECO "A37"]
[WhiteElo "2141"]
[BlackElo "2002"]
[PlyCount "71"]
[EventDate "2025.04.12"]
[EventCountry "NOR"]
[SourceTitle "playchess.com"]
[Source "ChessBase"]
[SourceQuality "1"]
[TimeControl "40/6000+30:2400+30"]

1. Nf3 {[%emt 0:00:17]} c5 {[%emt 0:10:52]} 2. c4 {[%emt 0:00:11]} Nc6 {[%emt 0:00:04]} 3. Nc3 {[%emt 0:00:23]} g6 {[%emt 0:00:17]} 4. g3 {[%emt 0:00:09]} Bg7 {[%emt 0:00:12]} 5. Bg2 {[%emt 0:00:10]} d6 {[%emt 0:00:31]} 6. O-O {[%emt 0:00:48]} e5 {[%emt 0:01:34]} 7. d3 {[%emt 0:04:51]} Nge7 {[%emt 0:00:58]} 8. Ne1 {[%emt 0:00:25]} Be6 {[%emt 0:00:06]} 9. Nc2 {[%emt 0:00:53]} d5 {[%emt 0:00:06]} 10. cxd5 {[%emt 0:00:14]} Nxd5 {[%emt 0:00:07]} 11. Ne3 {[%emt 0:00:24]} Nde7 {[%emt 0:06:52]} 12. a3 {[%emt 0:02:06]} O-O {[%emt 0:00:48]} 13. Rb1 {[%emt 0:01:30]} Rc8 {[%emt 0:04:42]} 14. Bd2 {[%emt 0:02:05]} a5 {[%emt 0:06:33]} 15. Nc4 {[%emt 0:15:32]} Rb8 {[%emt 0:04:32]} 16. Ne4 {[%emt 0:06:15]} b6 {[%emt 0:05:51]} 17. b4 {[%emt 0:04:59]} axb4 {[%emt 0:00:39]} 18. axb4 {[%emt 0:00:22]} b5 {[%emt 0:00:13]} 19. Ne3 {[%emt 0:12:20]} cxb4 {[%emt 0:02:37]} 20. Bxb4 {[%emt 0:01:22]} Nxb4 {[%emt 0:00:37]} 21. Rxb4 {[%emt 0:00:06]} Nc6 {[%emt 0:01:16]} 22. Rb1 {[%emt 0:00:38]} Nd4 {[%emt 0:05:50]} 23. Nc5 {[%emt 0:01:34]} Qd6 {[%emt 0:01:22]} 24. Nxe6 {[%emt 0:01:14]} Nxe6 {[%emt 0:00:10]} 25. Nd5 {[%emt 0:02:21]} Rfd8 {[%emt 0:00:51]} 26. Qd2 {[%emt 0:02:45]} Nc7 {[%emt 0:04:48]} 27. Nb4 {[%emt 0:09:13]} Rb6 {[%emt 0:00:55]} 28. Rfc1 {[%emt 0:00:41]} Bf8 {[%emt 0:04:00]} 29. Qe3 {[%emt 0:02:29]} Rc8 {[%emt 0:04:09]} 30. Rc2 {[%emt 0:14:14]} Rbb8 {[%emt 0:03:10]} 31. Nc6 {[%emt 0:04:33]} Ra8 {[%emt 0:00:08]} 32. Na7 {[%emt 0:02:44]} Nd5 {[%emt 0:00:07]} 33. Bxd5 {[%emt 0:02:16]} Rxc2 {[%emt 0:00:06]} 34. Bxa8 {[%emt 0:00:11]} Qb8 {[%emt 0:00:02]} 35. Bf3 {[%emt 0:06:03]} Bc5 {[%emt 0:00:24]} 36. Nc6 {[%emt 0:00:16]} 1-0

[Event "Fagernes Chess GM-Swiss 2025"]
[Site "Fagernes"]
[Date "2025.04.18"]
[Round "7.28"]
[White "Verbin, Valentina"]
[Black "Kittilsen, Sigurd"]
[Result "1-0"]
[Annotator "NA"]
[ECO "B13"]
[WhiteElo "2113"]
[BlackElo "2010"]
[PlyCount "83"]
[EventDate "2025.04.12"]
[EventCountry "NOR"]
[SourceTitle "playchess.com"]
[Source "ChessBase"]
[SourceQuality "1"]
[TimeControl "40/6000+30:2400+30"]

1. e4 {[%emt 0:00:23]} c6 {[%emt 0:00:11]} 2. d4 {[%emt 0:04:37]} d5 {[%emt 0:00:09]} 3. exd5 {[%emt 0:02:25]} cxd5 {[%emt 0:00:07]} 4. Bd3 {[%emt 0:00:04]} Nf6 {[%emt 0:01:24]} 5. h3 {[%emt 0:00:56]} Nc6 {[%emt 0:04:44]} 6. c3 {[%emt 0:00:16]} Qc7 {[%emt 0:03:49]} 7. Nf3 {[%emt 0:06:46]} e6 {[%emt 0:02:34]} 8. O-O {[%emt 0:02:12]} Bd6 {[%emt 0:01:02]} 9. Re1 {[%emt 0:07:17]} h6 {[%emt 0:01:45]} 10. a4 {[%emt 0:06:02]} O-O {[%emt 0:03:48]} 11. Na3 {[%emt 0:01:38]} a6 {[%emt 0:00:51]} 12. Nc2 {[%emt 0:00:16]} Bd7 {[%emt 0:05:30]} 13. Ne3 {[%emt 0:10:39]} Rad8 {[%emt 0:09:04]} 14. Bc2 {[%emt 0:03:04]} Ne7 {[%emt 0:16:16]} 15. Ng4 {[%emt 0:04:24]} Nxg4 {[%emt 0:19:29]} 16. hxg4 {[%emt 0:00:07]} Bf4 {[%emt 0:00:49]} 17. Bxf4 {[%emt 0:09:32]} Qxf4 {[%emt 0:00:08]} 18. Ne5 {[%emt 0:01:40]} f5 {[%emt 0:08:31]} 19. Qd3 {[%emt 0:09:30]} Be8 {[%emt 0:00:18]} 20. g3 {[%emt 0:07:23]} Qg5 {[%emt 0:00:15]} 21. f4 {[%emt 0:02:49]} Qf6 {[%emt 0:00:12]} 22. Re2 {[%emt 0:09:02]} Nc8 {[%emt 0:01:20]} 23. Qd2 {[%emt 0:08:41]} Nd6 {[%emt 0:02:44]} 24. g5 {[%emt 0:00:04]} Qe7 {[%emt 0:00:11]} 25. Rh2 {[%emt 0:05:33]} h5 {[%emt 0:10:26]} 26. g6 {[%emt 0:00:14]} Rf6 {[%emt 0:00:08]} 27. Rxh5 {[%emt 0:01:31]} Bxg6 {[%emt 0:01:09]} 28. Rh4 {[%emt 0:00:49]} Nc4 {[%emt 0:04:11]} 29. Qh2 {[%emt 0:01:26]} Nxe5 {[%emt 0:00:22]} 30. Rh8+ {[%emt 0:00:35]} Kf7 {[%emt 0:00:16]} 31. fxe5 {[%emt 0:00:17]} Rxh8 {[%emt 0:01:26]} 32. Qxh8 {[%emt 0:00:05]} Qc7 {[%emt 0:03:16]} 33. Kh2 {[%emt 0:01:13]} Qc4 {[%emt 0:06:33]} 34. Re1 {[%emt 0:00:03]} Qc7 {[%emt 0:03:03]} 35. exf6 {[%emt 0:00:17]} gxf6 {[%emt 0:00:23]} 36. Bd1 {[%emt 0:03:02]} Qb6 {[%emt 0:01:12]} 37. Bh5 {[%emt 0:01:39]} Bxh5 {[%emt 0:00:46]} 38. Qxh5+ {[%emt 0:00:03]} Kg7 {[%emt 0:00:13]} 39. Qe2 {[%emt 0:01:30]} Kg6 {[%emt 0:00:32]} 40. b4 {[%emt 0:01:11]} Qc7 {[%emt 0:00:36]} 41. Qxe6 {[%emt 0:01:28]} Qxc3 {[%emt 0:00:33]} 42. Qe8+ {[%emt 0:02:05]} 1-0

[Event "Fagernes Chess GM-Swiss 2025"]
[Site "Fagernes"]
[Date "2025.04.18"]
[Round "7.29"]
[White "Lilliehook, Victor"]
[Black "Arvola, Daniel"]
[Result "1/2-1/2"]
[Annotator "NA"]
[ECO "B82"]
[WhiteElo "1993"]
[BlackElo "2088"]
[PlyCount "85"]
[EventDate "2025.04.12"]
[EventCountry "NOR"]
[SourceTitle "playchess.com"]
[Source "ChessBase"]
[SourceQuality "1"]
[TimeControl "40/6000+30:2400+30"]

1. e4 {[%emt 0:00:02]} c5 {[%emt 0:00:12]} 2. Nf3 {[%emt 0:00:04]} d6 {[%emt 0:00:08]} 3. d4 {[%emt 0:00:03]} cxd4 {[%emt 0:00:05]} 4. Nxd4 {[%emt 0:00:02]} Nf6 {[%emt 0:00:10]} 5. Nc3 {[%emt 0:00:03]} a6 {[%emt 0:00:06]} 6. f4 {[%emt 0:00:08]} e6 {[%emt 0:00:14]} 7. Qf3 {[%emt 0:00:06]} Qc7 {[%emt 0:01:37]} 8. g4 {[%emt 0:00:13]} Nc6 {[%emt 0:04:03]} 9. Nxc6 {[%emt 0:01:03]} bxc6 {[%emt 0:00:34]} 10. g5 {[%emt 0:01:20]} Nd7 {[%emt 0:00:26]} 11. Be3 {[%emt 0:00:28]} Rb8 {[%emt 0:08:21]} 12. Bc4 {[%emt 0:07:50]} d5 {[%emt 0:15:32]} 13. Bb3 {[%emt 0:07:28]} Bb4 {[%emt 0:03:40]} 14. exd5 {[%emt 0:08:27]} Bxc3+ {[%emt 0:11:30]} 15. bxc3 {[%emt 0:00:30]} exd5 {[%emt 0:00:08]} 16. O-O {[%emt 0:05:37]} O-O {[%emt 0:06:40]} 17. Rae1 {[%emt 0:03:18]} Bb7 {[%emt 0:13:27]} 18. f5 {[%emt 0:04:37]} f6 {[%emt 0:06:49]} 19. Bf4 {[%emt 0:08:27]} Qb6+ {[%emt 0:01:14]} 20. Kh1 {[%emt 0:02:18]} Rbe8 {[%emt 0:02:26]} 21. Bd6 {[%emt 0:01:38]} fxg5 {[%emt 0:10:58]} 22. Bxf8 {[%emt 0:02:16]} Rxf8 {[%emt 0:00:11]} 23. c4 {[%emt 0:13:31]} Nf6 {[%emt 0:02:20]} 24. Re7 {[%emt 0:04:44]} Qb4 {[%emt 0:01:24]} 25. c5 {[%emt 0:07:46]} Bc8 {[%emt 0:05:21]} 26. Qe3 {[%emt 0:04:05]} Qh4 {[%emt 0:01:01]} 27. Qe5 {[%emt 0:07:24]} g4 {[%emt 0:02:06]} 28. c4 {[%emt 0:08:06]} Qh3 {[%emt 0:05:39]} 29. Rf2 {[%emt 0:02:16]} Qd3 {[%emt 0:01:11]} 30. cxd5 {[%emt 0:01:59]} cxd5 {[%emt 0:00:25]} 31. Rc7 {[%emt 0:05:25]} Kh8 {[%emt 0:02:28]} 32. Bc2 {[%emt 0:02:04]} Qc4 {[%emt 0:01:54]} 33. Qe7 {[%emt 0:01:57]} Rg8 {[%emt 0:00:12]} 34. a4 {[%emt 0:00:46]} Qd4 {[%emt 0:01:11]} 35. Re2 {[%emt 0:00:37]} Qf4 {[%emt 0:01:48]} 36. Re1 {[%emt 0:01:14]} d4 {[%emt 0:01:46]} 37. Qe5 {[%emt 0:00:34]} Qf3+ {[%emt 0:01:09]} 38. Kg1 {[%emt 0:00:01]} Bb7 {[%emt 0:00:26]} 39. Qg3 {[%emt 0:00:49]} Qh1+ {[%emt 0:00:31]} 40. Kf2 {[%emt 0:00:00]} Qd5 {[%emt 0:00:31]} 41. Re5 {[%emt 0:13:38]} Qh1 {[%emt 0:06:25]} 42. Re1 {[%emt 0:12:45]} Qd5 {[%emt 0:01:01]} 43. Re5 {[%emt 0:01:36]} 1/2-1/2